[Event "Betsys MČR v online bleskovém šachu 2021"]
[Site "Chess.com"]
[Date "2021.04.17"]
[Round "12"]
[White "ritchi12"]
[Black "Maty122"]
[Result "0-1"]
[WhiteElo "1154"]
[BlackElo "1137"]
[TimeControl "180+1"]
[EndTime "11:02:21 PDT"]
[Termination "Uživatel Maty122 zvítězil na čas"]

1. e4 {[%clk 0:03:00.9]} 1... e5 {[%clk 0:02:54.3]} 2. Nf3 {[%clk 0:03:00.9]}
2... Nc6 {[%clk 0:02:54.4]} 3. Bc4 {[%clk 0:02:56.6]} 3... Be7 {[%clk
0:02:52.1]} 4. Nc3 {[%clk 0:02:54.5]} 4... Nf6 {[%clk 0:02:52.5]} 5. d4 {[%clk
0:02:54.1]} 5... exd4 {[%clk 0:02:51.4]} 6. Nxd4 {[%clk 0:02:54]} 6... O-O
{[%clk 0:02:49.1]} 7. Nxc6 {[%clk 0:02:51.8]} 7... dxc6 {[%clk 0:02:49.1]} 8.
Qxd8 {[%clk 0:02:50.7]} 8... Rxd8 {[%clk 0:02:48.9]} 9. O-O {[%clk 0:02:50.7]}
9... Bc5 {[%clk 0:02:44.1]} 10. Be3 {[%clk 0:02:48]} 10... Bb4 {[%clk
0:02:41.1]} 11. Bg5 {[%clk 0:02:36.2]} 11... Re8 {[%clk 0:02:27.7]} 12. Bxf6
{[%clk 0:02:35.2]} 12... gxf6 {[%clk 0:02:27.9]} 13. Ne2 {[%clk 0:02:26.6]}
13... Rxe4 {[%clk 0:02:24.5]} 14. Bd3 {[%clk 0:02:26.2]} 14... Re8 {[%clk
0:02:20.9]} 15. c3 {[%clk 0:02:26.1]} 15... Bc5 {[%clk 0:02:19.8]} 16. Nf4
{[%clk 0:02:24.3]} 16... Be6 {[%clk 0:02:12.5]} 17. Nh5 {[%clk 0:02:22.8]} 17...
Be7 {[%clk 0:01:59.6]} 18. Rad1 {[%clk 0:02:14.4]} 18... Bg4 {[%clk 0:01:58.1]}
19. Nxf6+ {[%clk 0:02:02.5]} 19... Bxf6 {[%clk 0:01:55.9]} 20. Rde1 {[%clk
0:02:01.6]} 20... b5 {[%clk 0:01:50.6]} 21. f3 {[%clk 0:01:52.2]} 21... Bh5
{[%clk 0:01:47.9]} 22. g4 {[%clk 0:01:51.5]} 22... Bg6 {[%clk 0:01:48.1]} 23.
Kg2 {[%clk 0:01:51.5]} 23... Bxd3 {[%clk 0:01:47.3]} 24. Rh1 {[%clk 0:01:45.3]}
24... Bh4 {[%clk 0:01:38.5]} 25. Rd1 {[%clk 0:01:39.1]} 25... Re2+ {[%clk
0:01:36.8]} 26. Kh3 {[%clk 0:01:36.8]} 26... Bc2 {[%clk 0:01:30.4]} 27. Rd7
{[%clk 0:01:28.1]} 27... Bd8 {[%clk 0:01:21.3]} 28. Rd4 {[%clk 0:01:16.8]} 28...
Rf2 {[%clk 0:01:14.3]} 29. Rf4 {[%clk 0:01:11]} 29... Bg5 {[%clk 0:01:10.9]} 30.
Rd4 {[%clk 0:01:03.9]} 30... Rxf3+ {[%clk 0:01:09.9]} 31. Kg2 {[%clk 0:01:03.8]}
31... Be4 {[%clk 0:01:07.8]} 32. Rxe4 {[%clk 0:01:03.5]} 32... Rd3 {[%clk
0:01:00.4]} 33. h3 {[%clk 0:01:02.4]} 33... Rd2+ {[%clk 0:00:59.6]} 34. Kf3
{[%clk 0:01:01.8]} 34... Rxb2 {[%clk 0:00:58.6]} 35. a4 {[%clk 0:00:58.4]} 35...
Rb3 {[%clk 0:00:56.7]} 36. axb5 {[%clk 0:00:56.1]} 36... Rxc3+ {[%clk
0:00:52.8]} 37. Ke2 {[%clk 0:00:53.8]} 37... cxb5 {[%clk 0:00:52.1]} 38. Rb4
{[%clk 0:00:50.6]} 38... Rc5 {[%clk 0:00:46.3]} 39. Kd3 {[%clk 0:00:47.4]} 39...
Bf4 {[%clk 0:00:45.5]} 40. Rxf4 {[%clk 0:00:40.5]} 40... a5 {[%clk 0:00:44]} 41.
Ra1 {[%clk 0:00:37.8]} 41... a4 {[%clk 0:00:42.6]} 42. Rb4 {[%clk 0:00:36.7]}
42... c6 {[%clk 0:00:42.6]} 43. Kd4 {[%clk 0:00:36]} 43... Rd8+ {[%clk
0:00:39.7]} 44. Kxc5 {[%clk 0:00:35.2]} 44... Rc8 {[%clk 0:00:37]} 45. Ra3
{[%clk 0:00:33.9]} 45... Kg7 {[%clk 0:00:36.5]} 46. h4 {[%clk 0:00:33]} 46...
Kf6 {[%clk 0:00:36.8]} 47. Re4 {[%clk 0:00:26.2]} 47... h6 {[%clk 0:00:34.3]}
48. g5+ {[%clk 0:00:25]} 48... hxg5 {[%clk 0:00:33.9]} 49. hxg5+ {[%clk
0:00:22]} 49... Kxg5 {[%clk 0:00:34.2]} 50. Kb4 {[%clk 0:00:15.9]} 50... f5
{[%clk 0:00:33.5]} 51. Re5 {[%clk 0:00:14.8]} 51... Kf4 {[%clk 0:00:33.2]} 52.
Re7 {[%clk 0:00:11.7]} 52... Kg4 {[%clk 0:00:26.6]} 53. Kc5 {[%clk 0:00:10.6]}
53... f4 {[%clk 0:00:26]} 54. Rf7 {[%clk 0:00:10.2]} 54... Kg5 {[%clk
0:00:23.7]} 55. Kd4 {[%clk 0:00:09.1]} 55... c5+ {[%clk 0:00:22.8]} 56. Ke4
{[%clk 0:00:08.9]} 56... c4 {[%clk 0:00:20.4]} 57. Rxf4 {[%clk 0:00:08.6]} 57...
Re8+ {[%clk 0:00:19.7]} 58. Kf3 {[%clk 0:00:06.9]} 58... Rd8 {[%clk 0:00:17.4]}
59. Rg4+ {[%clk 0:00:05.2]} 59... Kf5 {[%clk 0:00:16.8]} 60. Rf4+ {[%clk
0:00:04.5]} 60... Ke5 {[%clk 0:00:17]} 61. Re4+ {[%clk 0:00:04.7]} 61... Kf5
{[%clk 0:00:16.2]} 62. Rf4+ {[%clk 0:00:03.1]} 62... Kg6 {[%clk 0:00:16.5]} 63.
Rg4+ {[%clk 0:00:03.2]} 63... Kh5 {[%clk 0:00:16.8]} 0-1

[Event "Betsys MČR v online bleskovém šachu 2021"]
[Site "Chess.com"]
[Date "2021.04.17"]
[Round "12"]
[White "DrStillestein"]
[Black "vozmenmarcel"]
[Result "1-0"]
[WhiteElo "2099"]
[BlackElo "1869"]
[TimeControl "180+1"]
[EndTime "11:02:27 PDT"]
[Termination "Uživatel DrStillestein zvítězil matem"]

1. e4 {[%clk 0:03:00.9]} 1... c5 {[%clk 0:02:58.8]} 2. Nf3 {[%clk 0:03:00.6]}
2... g6 {[%clk 0:02:59]} 3. c3 {[%clk 0:03:00.6]} 3... Bg7 {[%clk 0:02:58.1]} 4.
d4 {[%clk 0:02:59.6]} 4... cxd4 {[%clk 0:02:58.1]} 5. cxd4 {[%clk 0:03:00.5]}
5... d5 {[%clk 0:02:57.6]} 6. e5 {[%clk 0:02:56.3]} 6... Nc6 {[%clk 0:02:56.7]}
7. Bb5 {[%clk 0:02:51.8]} 7... Bd7 {[%clk 0:02:55]} 8. Nc3 {[%clk 0:02:49.6]}
8... e6 {[%clk 0:02:53.8]} 9. O-O {[%clk 0:02:48.7]} 9... Nge7 {[%clk
0:02:53.2]} 10. Bg5 {[%clk 0:02:42.7]} 10... a6 {[%clk 0:02:49.8]} 11. Ba4
{[%clk 0:02:38.1]} 11... b5 {[%clk 0:02:48.9]} 12. Bc2 {[%clk 0:02:37.7]} 12...
O-O {[%clk 0:02:47.6]} 13. a3 {[%clk 0:02:33.6]} 13... Qb6 {[%clk 0:02:41.9]}
14. Qd2 {[%clk 0:02:32.1]} 14... Rfe8 {[%clk 0:02:38.3]} 15. Rad1 {[%clk
0:02:31.4]} 15... Na5 {[%clk 0:02:34.1]} 16. Qe2 {[%clk 0:02:15.1]} 16... Nc4
{[%clk 0:02:30.5]} 17. Nd2 {[%clk 0:01:52.6]} 17... Nxb2 {[%clk 0:02:18.7]} 18.
Rb1 {[%clk 0:01:52.3]} 18... Nc4 {[%clk 0:02:17.5]} 19. Nxc4 {[%clk 0:01:51.7]}
19... dxc4 {[%clk 0:02:16.9]} 20. Qxc4 {[%clk 0:01:46.9]} 20... Rac8 {[%clk
0:02:14.8]} 21. Qd3 {[%clk 0:01:43.1]} 21... Bc6 {[%clk 0:02:09.1]} 22. Bxe7
{[%clk 0:01:39.6]} 22... Rxe7 {[%clk 0:02:08]} 23. Ne4 {[%clk 0:01:36.2]} 23...
Bxe4 {[%clk 0:01:54.7]} 24. Qxe4 {[%clk 0:01:37.1]} 24... Rd7 {[%clk 0:01:53.3]}
25. Rfd1 {[%clk 0:01:36.3]} 25... Rc4 {[%clk 0:01:52]} 26. Rb4 {[%clk
0:01:29.7]} 26... Rxb4 {[%clk 0:01:41.3]} 27. axb4 {[%clk 0:01:30.6]} 27... Bf8
{[%clk 0:01:40.2]} 28. Bb3 {[%clk 0:01:20.8]} 28... Bxb4 {[%clk 0:01:31.7]} 29.
d5 {[%clk 0:01:21.2]} 29... a5 {[%clk 0:01:12.9]} 30. d6 {[%clk 0:01:14.2]}
30... Kf8 {[%clk 0:00:58.9]} 31. Qh4 {[%clk 0:01:13]} 31... h5 {[%clk 0:00:55]}
32. Qf4 {[%clk 0:01:12.4]} 32... Kg8 {[%clk 0:00:46.1]} 33. h4 {[%clk
0:01:09.3]} 33... Qd8 {[%clk 0:00:34.6]} 34. Rc1 {[%clk 0:01:04.9]} 34... Kg7
{[%clk 0:00:23.3]} 35. g3 {[%clk 0:00:56.2]} 35... Ba3 {[%clk 0:00:20.9]} 36.
Rc2 {[%clk 0:00:54.6]} 36... a4 {[%clk 0:00:21]} 37. Ba2 {[%clk 0:00:49.7]}
37... b4 {[%clk 0:00:21.3]} 38. Rc4 {[%clk 0:00:42.4]} 38... b3 {[%clk
0:00:21.1]} 39. Bb1 {[%clk 0:00:42.3]} 39... Qb6 {[%clk 0:00:19.5]} 40. Rxa4
{[%clk 0:00:41]} 40... Qc5 {[%clk 0:00:19.2]} 41. Rc4 {[%clk 0:00:40.4]} 41...
Qd5 {[%clk 0:00:18.6]} 42. Rd4 {[%clk 0:00:31.9]} 42... Qc5 {[%clk 0:00:17.8]}
43. Qe3 {[%clk 0:00:31.1]} 43... Qc1+ {[%clk 0:00:17.3]} 44. Qxc1 {[%clk
0:00:31.2]} 44... Bxc1 {[%clk 0:00:17.4]} 45. Rb4 {[%clk 0:00:29.9]} 45... b2
{[%clk 0:00:18.3]} 46. Rc4 {[%clk 0:00:27.9]} 46... f6 {[%clk 0:00:19.2]} 47.
Rc7 {[%clk 0:00:26.9]} 47... fxe5 {[%clk 0:00:20.1]} 48. Rxd7+ {[%clk
0:00:26.9]} 48... Kf6 {[%clk 0:00:19.3]} 49. Rc7 {[%clk 0:00:26.4]} 49... e4
{[%clk 0:00:20.2]} 50. Bxe4 {[%clk 0:00:25.5]} 50... Ke5 {[%clk 0:00:19.3]} 51.
Bxg6 {[%clk 0:00:25.8]} 51... Kxd6 {[%clk 0:00:19.2]} 52. Rb7 {[%clk 0:00:25.2]}
52... Kc6 {[%clk 0:00:19]} 53. Rb3 {[%clk 0:00:24.9]} 53... Kc5 {[%clk
0:00:19.1]} 54. Bxh5 {[%clk 0:00:25.2]} 54... Kc4 {[%clk 0:00:19.8]} 55. Rb8
{[%clk 0:00:25.5]} 55... Kc3 {[%clk 0:00:18.6]} 56. Bg6 {[%clk 0:00:25.6]} 56...
e5 {[%clk 0:00:18.5]} 57. Be4 {[%clk 0:00:25.2]} 57... Kd4 {[%clk 0:00:18.3]}
58. f3 {[%clk 0:00:25.6]} 58... Be3+ {[%clk 0:00:17.5]} 59. Kf1 {[%clk
0:00:25.8]} 59... Kc3 {[%clk 0:00:17.8]} 60. Ke2 {[%clk 0:00:25.9]} 60... Bd4
{[%clk 0:00:17.9]} 61. h5 {[%clk 0:00:25]} 61... Ba7 {[%clk 0:00:17.6]} 62. Rb7
{[%clk 0:00:24.6]} 62... Bc5 {[%clk 0:00:17.4]} 63. Rc7 {[%clk 0:00:23.8]} 63...
Kd4 {[%clk 0:00:16.2]} 64. Rxc5 {[%clk 0:00:23.8]} 64... Kxc5 {[%clk 0:00:16]}
65. h6 {[%clk 0:00:24.4]} 65... Kd6 {[%clk 0:00:16.2]} 66. h7 {[%clk 0:00:24.6]}
66... b1=Q {[%clk 0:00:13.6]} 67. Bxb1 {[%clk 0:00:24.5]} 67... Ke7 {[%clk
0:00:13]} 68. h8=Q {[%clk 0:00:24.5]} 68... e4 {[%clk 0:00:13.9]} 69. Qe5+
{[%clk 0:00:24.6]} 69... Kd7 {[%clk 0:00:13.5]} 70. Qxe4 {[%clk 0:00:25.5]}
70... Kd6 {[%clk 0:00:13.5]} 71. Qf5 {[%clk 0:00:25.9]} 71... Kc6 {[%clk
0:00:13.1]} 72. Ke3 {[%clk 0:00:26.6]} 72... Kb6 {[%clk 0:00:12.8]} 73. Kd4
{[%clk 0:00:27.5]} 73... Ka6 {[%clk 0:00:12.6]} 74. Kc4 {[%clk 0:00:27.6]} 74...
Kb6 {[%clk 0:00:12.7]} 75. Qc5+ {[%clk 0:00:27.7]} 75... Kb7 {[%clk 0:00:12.8]}
76. Qd6 {[%clk 0:00:27.3]} 76... Ka7 {[%clk 0:00:12.2]} 77. Kb5 {[%clk
0:00:27.1]} 77... Ka8 {[%clk 0:00:12.1]} 78. Be4+ {[%clk 0:00:25.8]} 78... Ka7
{[%clk 0:00:12.2]} 79. Qb6# {[%clk 0:00:26.4]} 1-0

[Event "Betsys MČR v online bleskovém šachu 2021"]
[Site "Chess.com"]
[Date "2021.04.17"]
[Round "12"]
[White "YoungMegaMind"]
[Black "ffbp3q"]
[Result "1-0"]
[WhiteElo "2261"]
[BlackElo "2350"]
[TimeControl "180+1"]
[EndTime "11:02:29 PDT"]
[Termination "Uživatel YoungMegaMind zvítězil po vzdání soupeře"]

1. Nf3 {[%clk 0:03:00.9]} 1... d5 {[%clk 0:02:59.1]} 2. e3 {[%clk 0:02:59.8]}
2... Nf6 {[%clk 0:02:57.2]} 3. b3 {[%clk 0:02:59.4]} 3... Bg4 {[%clk 0:02:53.8]}
4. Bb2 {[%clk 0:02:58.4]} 4... Nbd7 {[%clk 0:02:50.4]} 5. h3 {[%clk 0:02:57.9]}
5... Bh5 {[%clk 0:02:47.5]} 6. d3 {[%clk 0:02:55.8]} 6... e6 {[%clk 0:02:42.7]}
7. Nbd2 {[%clk 0:02:54.9]} 7... Bd6 {[%clk 0:02:37.4]} 8. g4 {[%clk 0:02:47.5]}
8... Bg6 {[%clk 0:02:36.9]} 9. Bg2 {[%clk 0:02:46.9]} 9... c6 {[%clk 0:02:27.5]}
10. Qe2 {[%clk 0:02:45.3]} 10... e5 {[%clk 0:02:18.7]} 11. e4 {[%clk 0:02:15.7]}
11... O-O {[%clk 0:02:10.5]} 12. h4 {[%clk 0:02:10.5]} 12... h5 {[%clk
0:02:03.8]} 13. g5 {[%clk 0:02:10.1]} 13... Ng4 {[%clk 0:01:54.5]} 14. Bh3
{[%clk 0:02:04.9]} 14... f5 {[%clk 0:01:38.8]} 15. gxf6 {[%clk 0:01:58.9]} 15...
Ndxf6 {[%clk 0:01:01]} 16. Ng5 {[%clk 0:01:47.4]} 16... Qe7 {[%clk 0:00:57]} 17.
f3 {[%clk 0:01:43.7]} 17... Nh6 {[%clk 0:00:49]} 18. Rg1 {[%clk 0:01:27.7]}
18... Bc5 {[%clk 0:00:48.9]} 19. Rg2 {[%clk 0:01:24.3]} 19... Bf7 {[%clk
0:00:24.1]} 20. O-O-O {[%clk 0:01:08.1]} 20... a5 {[%clk 0:00:23.9]} 21. exd5
{[%clk 0:01:03.1]} 21... Nxd5 {[%clk 0:00:20.6]} 22. Qxe5 {[%clk 0:00:55.1]}
22... Qxe5 {[%clk 0:00:19.9]} 23. Bxe5 {[%clk 0:00:54.7]} 23... Ne3 {[%clk
0:00:20]} 24. Rdg1 {[%clk 0:00:50.2]} 24... Nxg2 {[%clk 0:00:19.8]} 25. Rxg2
{[%clk 0:00:51.1]} 25... g6 {[%clk 0:00:17.5]} 26. Nxf7 {[%clk 0:00:47.6]} 26...
Kxf7 {[%clk 0:00:17.2]} 27. d4 {[%clk 0:00:44.9]} 27... Ba3+ {[%clk 0:00:16.6]}
28. Kd1 {[%clk 0:00:43]} 28... Rg8 {[%clk 0:00:15.8]} 29. Ne4 {[%clk 0:00:43.1]}
29... Nf5 {[%clk 0:00:15.7]} 30. Ng5+ {[%clk 0:00:40.3]} 30... Ke7 {[%clk
0:00:15.9]} 31. Re2 {[%clk 0:00:38.7]} 31... Kd7 {[%clk 0:00:16.1]} 32. Ne4
{[%clk 0:00:33.6]} 32... Be7 {[%clk 0:00:12.5]} 33. Ng3 {[%clk 0:00:32.9]} 33...
Rgf8 {[%clk 0:00:11.4]} 34. Nxf5 {[%clk 0:00:31.6]} 34... gxf5 {[%clk
0:00:11.1]} 35. Rg2 {[%clk 0:00:26]} 35... Rf7 {[%clk 0:00:08.9]} 36. Rg6 {[%clk
0:00:23.8]} 36... Bxh4 {[%clk 0:00:08.3]} 37. Rh6 {[%clk 0:00:23.6]} 37... Re8
{[%clk 0:00:05.8]} 38. Rxh5 {[%clk 0:00:23.1]} 38... Bf6 {[%clk 0:00:05.6]} 39.
Rxf5 {[%clk 0:00:21.7]} 39... Ref8 {[%clk 0:00:04.3]} 40. Rxf6+ {[%clk
0:00:21.4]} 40... Ke8 {[%clk 0:00:04.8]} 41. Re6+ {[%clk 0:00:18.7]} 41... Re7
{[%clk 0:00:04.9]} 42. Rxe7+ {[%clk 0:00:18.8]} 42... Kxe7 {[%clk 0:00:05.3]}
43. Bg4 {[%clk 0:00:19.7]} 43... Rg8 {[%clk 0:00:04.8]} 44. Ke2 {[%clk
0:00:20.1]} 44... Ra8 {[%clk 0:00:04.2]} 45. a4 {[%clk 0:00:19.4]} 45... b5
{[%clk 0:00:03.8]} 46. Kd3 {[%clk 0:00:19.3]} 46... bxa4 {[%clk 0:00:03.9]} 47.
bxa4 {[%clk 0:00:20.2]} 47... Ra7 {[%clk 0:00:04.1]} 48. c3 {[%clk 0:00:20.6]}
48... Rb7 {[%clk 0:00:04.4]} 49. Kc4 {[%clk 0:00:21.1]} 49... Rb1 {[%clk
0:00:04.1]} 50. Kc5 {[%clk 0:00:21.4]} 50... Ra1 {[%clk 0:00:04.3]} 51. Kxc6
{[%clk 0:00:21.9]} 51... Rxa4 {[%clk 0:00:04.4]} 52. Kb5 {[%clk 0:00:22.3]}
52... Ra1 {[%clk 0:00:04.3]} 53. c4 {[%clk 0:00:22.7]} 53... a4 {[%clk
0:00:04.7]} 54. Kc5 {[%clk 0:00:20.8]} 54... a3 {[%clk 0:00:04.3]} 55. Bd6+
{[%clk 0:00:20.7]} 55... Kf6 {[%clk 0:00:03.8]} 56. Be5+ {[%clk 0:00:20.8]}
56... Kf7 {[%clk 0:00:03.9]} 57. d5 {[%clk 0:00:21.3]} 57... Re1 {[%clk
0:00:03.1]} 58. Be6+ {[%clk 0:00:21.2]} 58... Ke7 {[%clk 0:00:02.6]} 59. Bc3
{[%clk 0:00:20.6]} 59... a2 {[%clk 0:00:02.6]} 60. Kb4 {[%clk 0:00:19.6]} 60...
a1=Q {[%clk 0:00:02.5]} 61. Bxa1 {[%clk 0:00:19.5]} 61... Rxa1 {[%clk
0:00:02.8]} 62. f4 {[%clk 0:00:19.5]} 62... Rf1 {[%clk 0:00:02.6]} 63. f5 {[%clk
0:00:19.9]} 63... Kd6 {[%clk 0:00:03.3]} 64. c5+ {[%clk 0:00:18.9]} 64... Ke5
{[%clk 0:00:03.7]} 65. d6 {[%clk 0:00:18.9]} 65... Rb1+ {[%clk 0:00:03.3]} 66.
Ka5 {[%clk 0:00:19.1]} 66... Rc1 {[%clk 0:00:03.5]} 67. Kb6 {[%clk 0:00:18.4]}
67... Kf6 {[%clk 0:00:03.8]} 68. Kc6 {[%clk 0:00:17.6]} 68... Ke5 {[%clk
0:00:03.5]} 69. d7 {[%clk 0:00:17.8]} 69... Rd1 {[%clk 0:00:02.8]} 70. Kc7
{[%clk 0:00:16.8]} 70... Kf6 {[%clk 0:00:02.8]} 71. d8=Q+ {[%clk 0:00:16.1]} 1-0

[Event "Betsys MČR v online bleskovém šachu 2021"]
[Site "Chess.com"]
[Date "2021.04.17"]
[Round "12"]
[White "David_Mic"]
[Black "Stalri"]
[Result "0-1"]
[WhiteElo "2012"]
[BlackElo "2205"]
[TimeControl "180+1"]
[EndTime "11:02:29 PDT"]
[Termination "Uživatel Stalri zvítězil na čas"]

1. e4 {[%clk 0:03:00.9]} 1... c5 {[%clk 0:02:59.5]} 2. Nf3 {[%clk 0:02:59.1]}
2... e6 {[%clk 0:02:58.5]} 3. d3 {[%clk 0:02:58.5]} 3... d5 {[%clk 0:02:55.7]}
4. Nbd2 {[%clk 0:02:58.1]} 4... Nc6 {[%clk 0:02:53.8]} 5. g3 {[%clk 0:02:57.7]}
5... Bd6 {[%clk 0:02:52.4]} 6. Bg2 {[%clk 0:02:57.5]} 6... Nge7 {[%clk
0:02:52.9]} 7. O-O {[%clk 0:02:57.3]} 7... O-O {[%clk 0:02:53.3]} 8. Re1 {[%clk
0:02:56.6]} 8... Qc7 {[%clk 0:02:53.9]} 9. Qe2 {[%clk 0:02:50.5]} 9... f6 {[%clk
0:02:54.4]} 10. Nf1 {[%clk 0:02:45.1]} 10... d4 {[%clk 0:02:54.8]} 11. h4 {[%clk
0:02:40]} 11... e5 {[%clk 0:02:55.1]} 12. Bd2 {[%clk 0:02:28.8]} 12... Be6
{[%clk 0:02:54.9]} 13. a3 {[%clk 0:02:15.7]} 13... b5 {[%clk 0:02:54.7]} 14.
N3h2 {[%clk 0:02:07.1]} 14... c4 {[%clk 0:02:54.1]} 15. Bf3 {[%clk 0:01:53.6]}
15... Rab8 {[%clk 0:02:48.3]} 16. Bg4 {[%clk 0:01:52.2]} 16... Bf7 {[%clk
0:02:48.5]} 17. Rec1 {[%clk 0:01:44.8]} 17... a5 {[%clk 0:02:44.4]} 18. Qe1
{[%clk 0:01:35.2]} 18... Qb6 {[%clk 0:02:42.5]} 19. Kg2 {[%clk 0:01:22.8]} 19...
b4 {[%clk 0:02:42.1]} 20. axb4 {[%clk 0:01:15.2]} 20... axb4 {[%clk 0:02:42.1]}
21. dxc4 {[%clk 0:01:13.7]} 21... Bxc4 {[%clk 0:02:41.1]} 22. Be2 {[%clk
0:01:14.1]} 22... Be6 {[%clk 0:02:38.3]} 23. b3 {[%clk 0:01:07.8]} 23... Ra8
{[%clk 0:02:35.3]} 24. Bd3 {[%clk 0:01:05.8]} 24... Na7 {[%clk 0:02:33.5]} 25.
Ra6 {[%clk 0:01:03.4]} 25... Qc5 {[%clk 0:02:27.9]} 26. Rca1 {[%clk 0:01:00.8]}
26... Nec6 {[%clk 0:02:18.8]} 27. Nf3 {[%clk 0:00:43.9]} 27... Be7 {[%clk
0:02:17.4]} 28. Qe2 {[%clk 0:00:39.4]} 28... Kh8 {[%clk 0:02:13.1]} 29. R6a2
{[%clk 0:00:34.2]} 29... Qb6 {[%clk 0:02:10]} 30. Ra6 {[%clk 0:00:32.8]} 30...
Qb7 {[%clk 0:02:09.5]} 31. R6a4 {[%clk 0:00:30.2]} 31... Bd7 {[%clk 0:01:59.8]}
32. Qe1 {[%clk 0:00:27]} 32... Nd8 {[%clk 0:01:47.1]} 33. R4a2 {[%clk
0:00:22.4]} 33... Ne6 {[%clk 0:01:46.4]} 34. Ba6 {[%clk 0:00:19.5]} 34... Qb6
{[%clk 0:01:44.3]} 35. Qe2 {[%clk 0:00:18.7]} 35... Bc6 {[%clk 0:01:43.4]} 36.
Bd3 {[%clk 0:00:18.2]} 36... Nc5 {[%clk 0:01:43]} 37. Ra5 {[%clk 0:00:15.9]}
37... Qb7 {[%clk 0:01:38.7]} 38. Bxb4 {[%clk 0:00:13.5]} 38... Qxb4 {[%clk
0:00:51.9]} 39. Rxa7 {[%clk 0:00:12.3]} 39... f5 {[%clk 0:00:48.3]} 40. Rxa8
{[%clk 0:00:11.1]} 40... Rxa8 {[%clk 0:00:47.8]} 41. Rxa8+ {[%clk 0:00:10.9]}
41... Bxa8 {[%clk 0:00:48.7]} 42. Nxe5 {[%clk 0:00:08.4]} 42... fxe4 {[%clk
0:00:48.8]} 43. Bc4 {[%clk 0:00:06.5]} 43... h6 {[%clk 0:00:31.7]} 44. Nf7+
{[%clk 0:00:05.7]} 44... Kh7 {[%clk 0:00:31.7]} 45. Qh5 {[%clk 0:00:05.6]} 45...
e3+ {[%clk 0:00:30.2]} 46. f3 {[%clk 0:00:05.9]} 46... Qb7 {[%clk 0:00:17.8]}
47. Nxh6 {[%clk 0:00:05.2]} 47... Qxf3+ {[%clk 0:00:16.4]} 48. Qxf3 {[%clk
0:00:04.4]} 48... Bxf3+ {[%clk 0:00:16.8]} 49. Kxf3 {[%clk 0:00:04.6]} 49...
Kxh6 {[%clk 0:00:16.8]} 50. b4 {[%clk 0:00:04.4]} 50... Nd7 {[%clk 0:00:15.7]}
51. b5 {[%clk 0:00:04.6]} 51... Bc5 {[%clk 0:00:13.4]} 52. Bd3 {[%clk
0:00:03.3]} 52... Ne5+ {[%clk 0:00:12.9]} 53. Ke4 {[%clk 0:00:03.2]} 53... Ng4
{[%clk 0:00:12.5]} 54. Kf3 {[%clk 0:00:02.8]} 54... Ne5+ {[%clk 0:00:11.9]} 55.
Ke4 {[%clk 0:00:02.7]} 55... Ng4 {[%clk 0:00:12.1]} 56. Kf3 {[%clk 0:00:02.8]}
56... Nf6 {[%clk 0:00:12.4]} 57. Nh2 {[%clk 0:00:01.9]} 57... Nd5 {[%clk
0:00:12]} 58. Ng4+ {[%clk 0:00:02.1]} 58... Kh5 {[%clk 0:00:12.1]} 59. Ne5
{[%clk 0:00:02.4]} 59... Nc3 {[%clk 0:00:09.6]} 60. Nc4 {[%clk 0:00:02.5]} 60...
g5 {[%clk 0:00:09.4]} 61. Nxe3 {[%clk 0:00:02.5]} 61... dxe3 {[%clk 0:00:09.2]}
62. hxg5 {[%clk 0:00:02.7]} 62... Kxg5 {[%clk 0:00:09.4]} 63. g4 {[%clk
0:00:02.8]} 63... Nd5 {[%clk 0:00:09.3]} 64. Ke2 {[%clk 0:00:02.5]} 64... Nf6
{[%clk 0:00:09.5]} 65. Bc4 {[%clk 0:00:02.3]} 65... Nxg4 {[%clk 0:00:09.7]} 66.
c3 {[%clk 0:00:02.3]} 66... Ne5 {[%clk 0:00:10.1]} 67. Bd3 {[%clk 0:00:01.9]}
67... Kf4 {[%clk 0:00:10.5]} 68. Bc2 {[%clk 0:00:01.4]} 68... Ng4 {[%clk
0:00:10.7]} 0-1